bitfinex/quotes_SOLUSD_20241118
["timestamp","ask_amount","ask_price","bid_price","bid_amount"]
[1731913142374,0.09367462,242.5,242.45,36.02934667]
[1731913142676,0.09367462,242.5,242.45,23.776884]
[1731913142878,12.34613729,242.5,242.44,14.4365]
[1731913143188,0.09367462,242.48,242.44,14.4365]
[1731913143354,0.09367462,242.48,242.45,23.776884]
[1731913143555,0.25098,242.51,242.45,36.02934667]
[1731913143780,12.34613729,242.52,242.45,23.776884]
[1731913143960,0.09367462,242.5,242.44,14.4365]
[1731913144167,12.34613729,242.5,242.44,14.4365]
[1731913144471,0.09367462,242.48,242.44,14.4365]
[1731913144775,0.09367462,242.5,242.44,14.4365]
[1731913145192,0.09367462,242.5,242.45,23.776884]
[1731913145363,0.09367462,242.5,242.45,36.02934667]
[1731913146489,0.09367462,242.5,242.46,14.4352]
[1731913147175,10.7745,242.6,242.47,23.776884]
[1731913147386,12.25246267,242.58,242.49,12.25246267]
[1731913147564,12.25246267,242.58,242.5,23.776884]
[1731913148395,12.25246267,242.6,242.51,12.25246267]
[1731913148573,12.25246267,242.6,242.52,23.776884]
[1731913149169,12.25246267,242.6,242.51,26.68476267]
[1731913150098,15.8101,242.61,242.53,12.25246267]
[1731913150301,22.2423,242.66,242.58,12.25246267]
[1731913150688,0.09367462,242.65,242.58,16.37466267]
[1731913150889,22.2423,242.66,242.6,12.25246267]
[1731913151189,22.2423,242.66,242.58,14.428]
[1731913151190,15.8101,242.72,242.64,12.25246267]
[1731913151391,15.8101,242.78,242.71,12.25246267]
[1731913151600,6.4322,242.83,242.77,12.25246267]
[1731913151807,15.8101,242.85,242.8,12.25246267]
[1731913152109,12.25246267,242.84,242.7,20.0]
[1731913152272,12.25246267,242.82,242.73,12.25246267]
[1731913152479,16.37086267,242.82,242.73,12.25246267]
[1731913152681,0.09367462,242.79,242.7,4.1201]
[1731913153209,15.8101,242.85,242.73,12.25246267]
[1731913153386,12.25246267,242.82,242.73,12.25246267]
[1731913153703,20.0,242.84,242.77,12.25246267]
[1731913153880,20.0,242.84,242.75,12.25246267]
[1731913154197,12.25246267,242.83,242.75,12.25246267]
[1731913154406,0.09367462,242.82,242.75,12.25246267]
[1731913154589,19.9279,242.85,242.79,12.25246267]
[1731913154898,19.9279,242.85,242.73,10.2992]
[1731913154899,19.9279,242.85,242.77,12.25246267]
[1731913155098,19.9279,242.85,242.79,12.25246267]
[1731913155303,12.34613729,242.84,242.77,12.25246267]
[1731913155788,0.09367462,242.82,242.77,12.25246267]
[1731913156204,0.21916462,242.84,242.77,12.25246267]
[1731913156508,0.09367462,242.83,242.77,12.25246267]
[1731913156708,0.21916462,242.83,242.77,12.25246267]
[1731913157003,0.09367462,242.81,242.77,12.25246267]
[1731913157222,0.21916462,242.81,242.77,12.25246267]
[1731913157406,0.21916462,242.79,242.77,12.25246267]
[1731913157613,0.34465462,242.78,242.77,12.25246267]
[1731913158110,0.12549,242.78,242.77,12.25246267]
[1731913158290,15.8101,242.85,242.77,16.37136267]
[1731913158611,10.5496,242.88,242.77,16.37136267]
[1731913158612,6.4322,242.88,242.84,12.25246267]
[1731913159299,0.09367462,242.87,242.77,14.4167]
[1731913159608,0.09367462,242.87,242.82,12.25246267]
[1731913159778,0.09367462,242.89,242.77,10.2978]
[1731913160110,0.09367462,242.89,242.82,12.25246267]
[1731913160909,0.34465462,242.89,242.82,12.25246267]
[1731913161119,0.34465462,242.87,242.8,4.1184]
[1731913161415,0.34465462,242.85,242.79,12.25246267]
[1731913161708,4.1167,242.92,242.83,12.25246267]
[1731913161883,4.1167,242.92,242.85,12.25246267]
[1731913163011,0.12549,242.89,242.85,12.25246267]
[1731913163899,24.1162,242.94,242.87,12.25246267]
[1731913164085,12.25246267,242.93,242.85,12.25246267]
[1731913164284,24.1162,242.94,242.84,4.1178]
[1731913164285,24.1162,242.94,242.87,12.25246267]
[1731913164504,24.1162,242.94,242.85,12.25246267]
[1731913164689,12.34613729,242.93,242.85,12.25246267]
[1731913165189,0.09367462,242.93,242.87,12.25246267]
[1731913165395,0.09367462,242.91,242.87,12.25246267]
[1731913168404,0.09367462,242.91,242.77,10.2975]
[1731913168405,0.09367462,242.88,242.77,10.2975]
[1731913168609,20.34465462,242.88,242.81,12.25246267]
[1731913168791,0.34465462,242.86,242.81,12.25246267]
[1731913169717,0.34465462,242.86,242.78,4.1189]
[1731913170004,30.34465462,242.86,242.81,12.25246267]
[1731913172705,12.25246267,242.82,242.72,12.252463]
[1731913172913,12.25246267,242.82,242.43,20.02980937]
[1731913172914,6.65589,242.67,242.52,12.25246267]
[1731913173198,12.34613729,242.6,242.5,12.25246267]
[1731913173406,0.09367462,242.58,242.48,26.68656267]
[1731913173795,0.09367462,242.58,242.5,12.25246267]
[1731913173998,0.09367462,242.58,242.52,12.25246267]
[1731913174211,0.09367462,242.58,242.48,14.4341]
[1731913174514,0.21916462,242.6,242.51,4.1235]
[1731913174693,0.21916462,242.6,242.52,19.59326892]
[1731913174887,19.59326892,242.53,242.4,4.96922007]
[1731913175096,19.59326892,242.53,242.27,19.59326892]
[1731913175097,20.0,242.41,242.27,19.59326892]
[1731913175296,20.0,242.41,242.14,20.6487]
[1731913175297,0.09367462,242.35,242.25,10.3199]
[1731913175506,0.09367462,242.31,242.25,10.3199]
[1731913175707,0.09367462,242.31,242.17,10.323]
[1731913176003,0.09367462,242.24,242.17,10.323]
[1731913176215,0.09367462,242.22,242.17,10.323]
[1731913176412,0.09367462,242.2,242.11,4.1303]
[1731913176586,0.09367462,242.18,242.11,4.1303]
[1731913176787,19.59326892,242.21,242.12,19.59326892]
[1731913177403,0.09367462,242.2,242.11,14.4561]
[1731913177594,0.82451212,242.27,242.15,19.59326892]
[1731913177795,0.25098,242.24,242.15,19.59326892]
[1731913177987,0.09367462,242.17,241.99,0.71831586]
[1731913178187,1.07549212,242.18,242.04,19.59326892]
[1731913178389,4.1277,242.26,242.0,4.2322]
[1731913178390,0.82451212,242.23,242.06,19.59326892]
[1731913178607,0.25098,242.22,242.08,19.59326892]
[1731913178786,0.09367462,242.18,242.08,19.59326892]
[1731913179194,0.09367462,242.18,242.05,14.4597]
[1731913179195,0.09367462,242.18,242.1,19.59326892]
[1731913179609,0.09367462,242.18,242.11,4.1303]
[1731913179809,0.09367462,242.18,242.11,14.4561]
[1731913180022,19.59326892,242.22,242.12,19.59326892]
[1731913180311,0.12549,242.23,242.14,19.59326892]
[1731913180485,0.09367462,242.22,242.14,19.59326892]
[1731913180684,0.12549,242.23,242.14,19.59326892]
[1731913181107,19.59326892,242.26,242.16,19.59326892]
[1731913181313,19.59326892,242.28,242.18,19.59326892]
[1731913181621,19.59326892,242.3,242.21,4.1286]
[1731913182197,19.59326892,242.28,242.21,4.1286]
[1731913182511,22.0934,242.34,242.18,29.91586892]
[1731913182723,0.09367462,242.25,242.18,14.4516]
[1731913183210,0.09367462,242.23,242.18,14.4516]
[1731913183718,0.34465462,242.23,242.18,10.3226]
[1731913183922,20.34465462,242.18,242.06,10.3278]
[1731913184090,0.34465462,242.14,242.06,10.3278]
[1731913184799,0.34465462,242.14,242.06,14.4589]
[1731913185009,0.09367462,242.12,242.06,10.3278]
[1731913185195,0.09367462,242.1,242.06,10.3278]
[1731913185996,0.09367462,242.13,242.06,10.3278]
[1731913186202,19.59326892,242.13,242.06,10.3278]
[1731913186404,0.12549,242.08,241.99,19.59326892]
[1731913186704,0.12549,242.08,241.97,10.3316]
[1731913186705,19.59326892,242.04,241.97,10.3316]
[1731913187006,0.09367462,242.03,241.97,14.4643]
[1731913187416,19.59326892,242.04,241.97,14.4643]
[1731913187604,0.12549,241.98,241.88,10.3353]
[1731913187801,0.12549,241.98,241.89,19.59326892]
[1731913188000,0.09367462,241.97,241.89,19.59326892]
[1731913188820,19.81243354,241.95,241.88,10.3353]
[1731913189126,0.21916462,241.93,241.88,10.3353]
[1731913189330,19.81243354,241.91,241.81,23.72866892]
[1731913189617,0.21916462,241.87,241.81,4.1354]
[1731913189803,0.09367462,241.87,241.81,4.1354]
[1731913189997,0.09367462,241.87,241.82,19.59326892]
[1731913190422,20.25098,241.96,241.85,19.59326892]
[1731913190725,0.25098,241.96,241.88,19.59326892]
[1731913191110,0.09367462,241.95,241.88,19.59326892]
[1731913191299,0.09367462,241.95,241.89,4.1341]
[1731913191497,0.82451212,242.05,241.93,19.59326892]
[1731913191705,0.82451212,242.05,241.98,19.59326892]
[1731913192003,15.5843,242.07,241.98,19.59326892]
[1731913192321,16.40881212,242.07,242.01,31.97356287]
[1731913192510,31.97356287,242.03,241.89,14.4693]
[1731913192831,0.09367462,242.0,241.92,31.97356287]
[1731913193120,0.1,242.17,241.99,31.97356287]
[1731913193326,0.82451212,242.15,242.05,31.97356287]
[1731913193712,31.97356287,242.14,242.03,31.97356287]
[1731913194014,0.82451212,242.15,242.05,31.97356287]
[1731913194324,31.97356287,242.2,242.1,31.97356287]
[1731913194624,39.02177499,242.22,242.12,31.97356287]
[1731913194829,39.02177499,242.22,242.04,31.97356287]
[1731913194830,7.04821212,242.22,242.14,31.97356287]
[1731913195120,0.82451212,242.24,242.16,31.97356287]
[1731913195321,0.82451212,242.24,242.11,10.3256]
[1731913195322,31.97356287,242.19,242.11,10.3256]
[1731913195525,31.97356287,242.21,242.12,31.97356287]
[1731913195723,31.97356287,242.21,242.11,14.4559]
[1731913195724,31.97356287,242.23,242.14,31.97356287]
[1731913196219,0.09367462,242.21,242.14,31.97356287]
[1731913196427,0.82451212,242.22,242.14,31.97356287]
[1731913196723,0.82451212,242.22,242.12,31.97356287]
[1731913197095,0.25098,242.21,242.12,31.97356287]
[1731913197296,32.22454287,242.21,242.1,31.97356287]
[1731913197537,0.34465462,242.19,242.12,31.97356287]
[1731913198509,0.34465462,242.19,241.99,0.1]
[1731913198510,32.31821749,242.19,241.99,0.1]
[1731913198707,0.34465462,242.17,242.06,10.328]
[1731913198913,0.12549,242.15,242.1,31.97356287]
[1731913199116,0.21916462,242.14,242.1,31.97356287]
[1731913199426,0.21916462,242.11,242.1,31.97356287]
[1731913200130,30.0,242.16,242.1,31.97356287]
[1731913200321,0.09367462,242.15,242.1,31.97356287]
[1731913200925,0.92451212,242.2,242.12,31.97356287]
[1731913201107,0.92451212,242.2,242.08,14.4579]
[1731913201108,0.82451212,242.26,242.16,31.97356287]
[1731913201310,159.1,242.32,242.08,14.4579]
[1731913201311,0.1,242.3,242.08,14.4579]
[1731913201523,0.1,242.23,242.14,31.97356287]
[1731913201831,0.09367462,242.22,242.16,31.97356287]
[1731913202133,0.09367462,242.2,242.12,31.97356287]
[1731913202330,0.09367462,242.2,242.1,46.43036287]
[1731913202709,0.34465462,242.2,242.13,31.97356287]
[1731913202904,0.25098,242.18,242.11,31.97356287]
[1731913203126,0.34465462,242.16,242.11,31.97356287]
[1731913203332,0.34465462,242.16,242.07,42.30106287]
[1731913203333,1.26916674,242.16,242.07,42.30106287]
[1731913203543,0.09367462,242.12,242.05,31.97356287]
[1731913203707,0.09367462,242.12,242.01,4.1319]
[1731913203708,0.25098,242.11,242.03,31.97356287]
[1731913203911,0.25098,242.11,242.03,36.10516287]
[1731913203912,0.09367462,242.1,242.03,36.10516287]
[1731913204325,0.09367462,242.1,242.03,31.97356287]
[1731913204529,0.09367462,242.1,242.07,31.97356287]
[1731913204804,0.09367462,242.1,242.09,31.97356287]
[1731913205024,0.25098,242.11,242.09,31.97356287]
[1731913205843,0.09367462,242.1,242.09,31.97356287]
[1731913206508,0.82451212,242.24,242.11,23.776884]
[1731913206710,0.1,242.31,242.11,23.776884]
[1731913206711,32.79807499,242.31,242.2,31.97356287]
[1731913207223,32.79807499,242.31,242.22,31.97356287]
[1731913207734,31.97356287,242.29,242.21,4.1285]
[1731913207937,31.97356287,242.27,242.21,4.1285]
[1731913208136,0.09367462,242.26,242.22,31.97356287]
[1731913208533,31.97356287,242.31,242.22,31.97356287]
[1731913208729,4.1264,242.35,242.26,31.97356287]
[1731913208730,36.09996287,242.35,242.26,31.97356287]
[1731913208928,0.82451212,242.4,242.23,0.1]
[1731913209133,0.82451212,242.41,242.32,31.97356287]
[1731913209318,31.97356287,242.35,242.26,31.97356287]
[1731913209847,31.97356287,242.37,242.28,31.97356287]
[1731913210720,0.09367462,242.36,242.28,31.97356287]
[1731913210922,0.21916462,242.34,242.26,31.97356287]
[1731913211132,0.09367462,242.32,242.26,31.97356287]
[1731913211427,0.09367462,242.28,242.24,31.97356287]
[1731913211617,0.09367462,242.28,242.27,31.97356287]
[1731913211819,0.09367462,242.28,242.25,31.97356287]
[1731913212219,0.09367462,242.28,242.24,19.63695241]
[1731913212418,19.76244241,242.34,242.26,19.63695241]
[1731913212621,0.12549,242.33,242.28,19.63695241]
[1731913212834,0.09367462,242.32,242.28,19.63695241]
[1731913213037,0.82451212,242.41,242.3,19.63695241]
[1731913213211,19.63695241,242.42,242.33,19.63695241]
[1731913213416,4.94801212,242.51,242.4,19.63695241]
[1731913213737,19.63695241,242.52,242.42,19.63695241]
[1731913213953,19.63695241,242.48,242.4,19.63695241]
[1731913214245,19.73062703,242.5,242.4,19.63695241]
[1731913214418,19.63695241,242.5,242.4,19.63695241]
[1731913214724,19.63695241,242.5,242.42,19.63695241]
[1731913214925,0.25098,242.49,242.42,19.63695241]
[1731913215229,0.25098,242.49,242.41,4.1252]
[1731913215230,0.82451212,242.58,242.48,19.63695241]
[1731913215536,19.63695241,242.57,242.48,19.63695241]
[1731913216140,0.1,242.62,242.42,23.776884]
[1731913216141,19.63695241,242.59,242.42,23.876884]
[1731913216351,31.83931292,242.57,242.48,31.83931292]
[1731913216531,31.83931292,242.57,242.49,4.1237]
[1731913216731,31.83931292,242.57,242.47,10.3103]
[1731913216732,31.83931292,242.55,242.47,10.3103]
[1731913217031,31.83931292,242.57,242.48,31.83931292]
[1731913217343,31.83931292,242.53,242.47,14.4345]
[1731913217551,0.09367462,242.52,242.47,14.4345]
[1731913217844,31.83931292,242.57,242.48,31.83931292]
[1731913218351,31.83931292,242.6,242.51,31.83931292]
[1731913218522,31.83931292,242.62,242.53,31.83931292]
[1731913219144,31.83931292,242.6,242.51,31.83931292]
[1731913219527,0.09367462,242.57,242.51,31.83931292]
[1731913219940,0.09367462,242.59,242.51,31.83931292]
[1731913220450,0.09367462,242.53,242.5,4.1237]
[1731913220822,0.09367462,242.53,242.51,31.83931292]
[1731913221130,31.83931292,242.6,242.51,31.83931292]
[1731913221131,0.21916462,242.57,242.51,31.83931292]
[1731913221325,0.09367462,242.55,242.53,31.83931292]
[1731913221527,0.09367462,242.55,242.51,31.83931292]
[1731913222841,0.12549,242.57,242.46,43.776884]
[1731913222842,0.12549,242.57,242.53,31.83931292]
[1731913223046,47.42261292,242.66,242.56,31.83931292]
[1731913223252,0.09367462,242.65,242.56,31.83931292]
[1731913223541,0.09367462,242.63,242.56,31.83931292]
[1731913224053,0.09367462,242.63,242.54,31.83931292]
[1731913224228,0.21916462,242.61,242.52,31.83931292]
[1731913224430,0.12549,242.59,242.52,31.83931292]
[1731913224774,0.12549,242.59,242.53,4.1232]
[1731913224925,0.09367462,242.56,242.53,4.1232]
[1731913225126,31.83931292,242.62,242.53,14.4312]
[1731913225535,0.09367462,242.61,242.54,31.83931292]
[1731913225845,0.09367462,242.61,242.56,31.83931292]
[1731913226027,31.93298754,242.64,242.53,14.4312]
[1731913226235,31.93298754,242.64,242.54,31.83931292]
[1731913226635,47.42261292,242.66,242.56,31.83931292]
[1731913226943,1.16916674,242.65,242.56,31.83931292]
[1731913227533,33.00847966,242.65,242.56,31.83931292]
[1731913227754,0.09367462,242.65,242.6,31.83931292]
[1731913227949,0.09367462,242.65,242.58,31.83931292]
[1731913228155,0.09367462,242.65,242.47,55.6769]
[1731913228156,0.09367462,242.61,242.51,31.83931292]
[1731913228346,0.91818674,242.61,242.51,31.83931292]
[1731913228737,0.91818674,242.61,242.52,4.1233]
[1731913228935,0.09367462,242.59,242.52,4.1233]
[1731913229136,0.21916462,242.59,242.52,4.1233]
[1731913229336,0.21916462,242.59,242.49,35.96301292]
[1731913229337,0.21916462,242.55,242.49,35.96301292]
[1731913229559,0.12549,242.5,242.44,31.83931292]
[1731913229773,0.21916462,242.47,242.41,10.3127]
[1731913229931,0.12549,242.47,242.41,10.3127]
[1731913230758,0.82451212,242.54,242.46,31.83931292]
[1731913231066,0.82451212,242.54,242.52,31.83931292]
[1731913231264,36.78392504,242.71,242.52,63.67862584]
[1731913231429,0.82451212,242.71,242.63,31.83931292]
[1731913231770,0.82451212,242.73,242.65,31.83931292]
[1731913232130,0.09367462,242.72,242.65,31.83931292]
[1731913232335,0.82451212,242.73,242.65,31.83931292]
[1731913232635,32.66382504,242.73,242.65,35.96041292]
[1731913232840,32.66382504,242.73,242.65,4.1211]
[1731913233432,0.25098,242.72,242.65,4.1211]
[1731913233633,0.25098,242.7,242.65,4.1211]
[1731913233852,0.09367462,242.69,242.65,4.1211]
[1731913234632,0.09367462,242.7,242.65,4.1211]
[1731913234830,0.09367462,242.7,242.63,10.3036]
[1731913235052,31.83931292,242.69,242.59,31.83931292]
[1731913235261,0.09367462,242.66,242.57,42.14531292]
[1731913235468,31.83931292,242.65,242.57,10.306]
[1731913235642,4.1199,242.72,242.57,10.306]
[1731913235643,0.09367462,242.62,242.57,10.306]
[1731913235954,0.09367462,242.62,242.57,42.14531292]
[1731913236157,0.25098,242.64,242.57,42.14531292]
[1731913236366,0.09367462,242.63,242.57,29.89083308]
[1731913236669,19.58483308,242.66,242.57,29.89083308]
[1731913236960,0.09367462,242.64,242.59,19.58483308]
[1731913237376,19.58483308,242.72,242.63,19.58483308]
[1731913237549,19.58483308,242.7,242.6,19.58483308]
[1731913237742,0.09367462,242.67,242.6,19.58483308]
[1731913238451,0.09367462,242.65,242.58,19.58483308]
[1731913238646,0.34465462,242.65,242.57,14.4285]
[1731913239242,0.09367462,242.63,242.57,10.306]
[1731913239442,0.21916462,242.59,242.57,14.4285]
[1731913239663,0.34465462,242.58,242.57,14.4285]
[1731913240145,19.58483308,242.64,242.57,14.4285]
[1731913240442,0.25098,242.63,242.57,14.4285]
[1731913240664,0.09367462,242.6,242.57,14.4285]
[1731913240844,0.21916462,242.6,242.57,10.306]
[1731913241459,0.21916462,242.58,242.57,10.306]
[1731913242075,19.58483308,242.62,242.54,19.58483308]
[1731913242277,0.12549,242.61,242.58,19.58483308]
[1731913242485,0.12549,242.61,242.56,19.58483308]
[1731913242764,6.1422,242.74,242.58,19.58483308]
[1731913242765,19.58483308,242.68,242.58,19.58483308]
[1731913242954,19.58483308,242.68,242.59,14.4275]
[1731913243358,19.58483308,242.7,242.6,19.58483308]
[1731913243583,19.58483308,242.68,242.6,19.58483308]
[1731913243957,0.09367462,242.67,242.61,4.1218]
[1731913244380,0.21916462,242.65,242.61,4.1218]
[1731913244562,0.09367462,242.63,242.61,4.1218]
[1731913244873,0.09367462,242.63,242.61,14.4264]
[1731913245368,0.21916462,242.65,242.61,14.4264]
[1731913245573,0.09367462,242.63,242.61,14.4264]
[1731913245780,0.12549,242.64,242.61,14.4264]
[1731913246570,0.12549,242.64,242.61,10.3046]
[1731913246757,0.34465462,242.61,242.51,19.58483308]
[1731913247175,0.25098,242.57,242.49,19.58483308]
[1731913247358,19.6785077,242.56,242.48,10.3101]
[1731913247552,0.21916462,242.49,242.43,19.58483308]
[1731913247755,0.21916462,242.47,242.43,19.58483308]
[1731913248251,0.21916462,242.47,242.41,19.58483308]
[1731913248453,0.09367462,242.45,242.41,19.58483308]
[1731913248770,0.21916462,242.43,242.39,34.02423308]
[1731913249167,0.09367462,242.48,242.39,34.02423308]
[1731913249351,0.09367462,242.44,242.39,29.89873308]
[1731913249558,0.09367462,242.4,242.39,29.89873308]
[1731913250274,0.09367462,242.4,242.39,10.3139]
[1731913250481,0.09367462,242.36,242.28,19.58483308]
[1731913250654,0.21916462,242.34,242.26,29.90423308]
[1731913250854,0.21916462,242.34,242.26,10.3194]
[1731913250855,0.21916462,242.32,242.26,10.3194]
[1731913251060,0.25098,242.35,242.26,29.90423308]
[1731913251263,0.09367462,242.32,242.26,10.3194]
[1731913251464,0.09367462,242.3,242.26,10.3194]
[1731913252081,0.21916462,242.3,242.26,10.3194]
[1731913252778,0.25098,242.33,242.26,10.3194]
[1731913252977,0.25098,242.33,242.26,29.90423308]
[1731913253179,0.09367462,242.32,242.26,34.03193308]
[1731913253568,0.21916462,242.32,242.26,34.03193308]
[1731913255466,0.21916462,242.3,242.26,14.4471]
[1731913256563,0.12549,242.3,242.26,14.4471]
[1731913256798,0.12549,242.35,242.26,34.03193308]
[1731913257099,0.09367462,242.34,242.26,34.03193308]
[1731913257458,0.34465462,242.29,242.26,10.3194]
[1731913257678,0.09367462,242.26,242.24,4.1281]
[1731913257894,0.21916462,242.22,242.2,10.3218]
[1731913258181,19.58483308,242.28,242.2,10.3218]
[1731913258480,0.25098,242.25,242.2,10.3218]
[1731913258703,0.25098,242.23,242.14,19.58483308]
[1731913258902,0.09367462,242.22,242.16,19.58483308]
[1731913259884,0.82451212,242.34,242.21,19.58483308]
[1731913260095,6.2238,242.41,242.17,0.82553431]
[1731913260096,19.58483308,242.35,242.18,0.2]
[1731913260405,0.82451212,242.4,242.23,19.58483308]
[1731913260406,19.58483308,242.33,242.23,19.58483308]
[1731913260700,19.58483308,242.35,242.26,14.4471]
[1731913261205,19.58483308,242.33,242.26,14.4471]
[1731913261498,19.58483308,242.29,242.26,10.3194]
[1731913261717,0.34465462,242.28,242.26,10.3194]
[1731913262177,0.34465462,242.26,242.21,4.1285]
[1731913262372,19.58483308,242.23,242.17,4.1292]
[1731913262576,0.09367462,242.2,242.17,4.1292]
[1731913262775,0.21916462,242.2,242.14,14.4541]
[1731913263313,0.21916462,242.2,242.15,19.58483308]
[1731913263601,0.25098,242.26,242.17,19.58483308]
[1731913263804,0.09367462,242.25,242.17,19.58483308]
[1731913264108,0.12549,242.26,242.19,19.58483308]
[1731913264478,0.25098,242.29,242.21,19.58483308]
[1731913264682,19.58483308,242.3,242.22,14.4495]
[1731913265097,0.09367462,242.27,242.22,14.4495]
[1731913265708,0.09367462,242.27,242.19,19.58483308]
[1731913265709,0.09367462,242.25,242.19,4.1288]
[1731913265881,0.34465462,242.23,242.16,10.3234]
[1731913267089,0.34465462,242.23,242.19,19.58483308]
[1731913267400,0.34465462,242.23,242.17,19.58483308]
[1731913267602,19.58483308,242.28,242.19,19.58483308]
[1731913267808,19.58483308,242.32,242.23,19.58483308]
[1731913268405,19.58483308,242.34,242.25,19.58483308]
[1731913268578,0.09367462,242.33,242.25,19.58483308]
[1731913268780,0.09367462,242.33,242.17,23.776884]
[1731913268781,0.09367462,242.29,242.21,19.58483308]
[1731913269000,0.09367462,242.29,242.22,14.4495]
[1731913269303,0.09367462,242.25,242.22,14.4495]
[1731913269504,0.09367462,242.25,242.22,10.3211]
[1731913269708,0.09367462,242.25,242.22,14.4495]
[1731913269890,0.09367462,242.23,242.17,14.4526]
[1731913270091,0.09367462,242.21,242.17,14.4526]
[1731913270417,0.34465462,242.19,242.13,4.1299]
[1731913270718,0.25098,242.15,242.07,10.3272]
[1731913271004,0.09367462,242.1,242.03,19.58483308]
[1731913271589,0.09367462,242.1,241.96,30.9965]
[1731913271590,0.09367462,242.1,242.05,19.58483308]
[1731913271993,0.09367462,242.1,242.06,14.4592]
[1731913273213,0.09367462,242.08,242.02,14.4614]
[1731913273711,0.09367462,242.03,241.95,29.91733308]
[1731913273926,0.34465462,242.01,241.95,10.3325]
[1731913274126,0.34465462,241.97,241.92,4.1335]
[1731913274415,0.34465462,241.97,241.88,14.4696]
[1731913274416,0.34465462,241.92,241.88,14.4696]
[1731913275004,0.34465462,241.92,241.88,10.3354]
[1731913275182,0.21916462,241.92,241.88,10.3354]
[1731913275394,0.21916462,241.9,241.88,14.4696]
[1731913275594,0.34465462,241.89,241.88,14.4696]
[1731913276191,0.34465462,241.89,241.88,10.3354]
[1731913276888,0.12549,241.83,241.82,4.1352]
[1731913277102,0.09367462,241.78,241.74,42.35404086]
[1731913277347,0.34465462,241.77,241.76,4.1361]
[1731913277895,0.34465462,241.77,241.74,42.35404086]
[1731913277896,0.21916462,241.76,241.74,10.3414]
[1731913278106,0.21916462,241.76,241.74,14.478]
[1731913278418,0.34465462,241.75,241.74,46.49064086]
[1731913278599,0.34465462,241.75,241.74,10.3414]
[1731913278797,0.21916462,241.74,241.7,4.1371]
[1731913279009,0.21916462,241.71,241.67,14.4822]
[1731913279314,0.21916462,241.68,241.67,14.4822]
[1731913279888,0.82451212,241.79,241.67,46.49484086]
[1731913279889,32.01264086,241.77,241.67,46.49484086]
[1731913280113,0.25098,241.76,241.67,46.49484086]
[1731913280422,32.10631548,241.75,241.67,14.4822]
[1731913280587,38.60404086,241.84,241.74,32.01264086]
[1731913280794,6.5914,241.84,241.76,32.01264086]
[1731913281103,32.01264086,241.88,241.8,32.01264086]
[1731913281308,0.82451212,241.89,241.71,0.1]
[1731913281309,0.82451212,241.89,241.73,0.1]
[1731913281492,32.01264086,241.83,241.74,32.01264086]
[1731913281808,0.09367462,241.82,241.76,32.01264086]
[1731913281993,32.01264086,241.87,241.78,32.01264086]
[1731913282486,32.01264086,241.89,241.8,32.01264086]
[1731913283410,6.5914,241.92,241.85,32.01264086]
[1731913283592,32.83715298,241.95,241.85,32.01264086]
[1731913283995,32.01264086,241.95,241.85,32.01264086]
[1731913284214,32.01264086,241.95,241.87,32.01264086]
[1731913284407,47.62424086,241.97,241.88,14.4699]
[1731913284908,32.01264086,241.95,241.88,14.4699]
[1731913285113,32.01264086,241.92,241.88,10.3357]
[1731913285314,32.01264086,241.94,241.88,14.4699]
[1731913285496,32.01264086,241.96,241.88,14.4699]
[1731913285685,0.09367462,241.95,241.88,46.48254086]
[1731913285994,0.09367462,241.95,241.88,14.4699]
[1731913286686,32.01264086,241.94,241.88,14.4699]
[1731913286893,0.09367462,241.93,241.88,14.4699]
[1731913287103,0.21916462,241.91,241.88,14.4699]
[1731913287318,0.34465462,241.89,241.88,14.4699]
[1731913287615,32.01264086,241.94,241.88,14.4699]
[1731913287811,0.25098,241.93,241.88,14.4699]
[1731913287998,0.09367462,241.92,241.88,14.4699]
[1731913288315,0.09367462,241.9,241.88,14.4699]
[1731913288610,0.09367462,241.88,241.82,10.3382]
[1731913288823,0.21916462,241.84,241.82,10.3382]
[1731913288999,0.12549,241.85,241.82,10.3382]
[1731913289000,0.34465462,241.83,241.82,10.3382]
[1731913289187,0.09367462,241.8,241.74,32.01264086]
[1731913289393,0.12549,241.78,241.75,10.341]
[1731913290116,0.12549,241.82,241.75,10.341]
[1731913290415,0.95000212,241.82,241.75,10.341]
[1731913290788,0.12549,241.82,241.75,10.341]
[1731913291495,0.21916462,241.81,241.75,10.341]
[1731913291712,0.12549,241.8,241.75,10.341]
[1731913292019,0.09367462,241.77,241.75,10.341]
[1731913292315,0.34465462,241.76,241.75,10.341]
[1731913292910,0.21916462,241.76,241.75,10.341]
[1731913293819,0.12549,241.82,241.75,10.341]
[1731913293994,0.12549,241.82,241.77,32.01264086]
[1731913294191,0.12549,241.84,241.75,42.35364086]